fUSD/lending_fUSD_20260423
["ID","MTS","AMOUNT","RATE_DAILY","PERIOD"]
[421000873,1776894635089,-160.12319153,9.483e-05,2]
[421000874,1776894635098,-165.29738432,9.483e-05,2]
[421000875,1776894635107,-504.06938275,9.483e-05,2]
[421000876,1776894635117,-500.0,9.483e-05,2]
[421000877,1776894635126,-500.0,9.483e-05,2]
[421000878,1776894635135,-500.0,9.483e-05,2]
[421000879,1776894635144,-500.0,9.483e-05,2]
[421000880,1776894635158,-458.63773172,9.483e-05,2]
[421000881,1776894635167,-311.88887855,9.483e-05,2]
[421000882,1776894635176,-506.25645231,9.483e-05,2]
[421000883,1776894635185,-316.89962782,9.483e-05,2]
[421000884,1776894635195,-500.0,9.483e-05,2]
[421000885,1776894635204,-571.79586512,9.483e-05,2]
[421000886,1776894635213,-500.0,9.483e-05,2]
[421000887,1776894635222,-693.05,9.505e-05,2]
[421000888,1776894635231,-155.0,9.505e-05,2]
[421000889,1776894635240,-253.69604755,9.505e-05,2]
[421000890,1776894635249,-500.0,9.505e-05,2]
[421000891,1776894635259,-493.0796525,9.505e-05,2]
[421000892,1776894635268,-500.0,9.505e-05,2]
[421000893,1776894635278,-500.0,9.505e-05,2]
[421000894,1776894635287,-500.0,9.505e-05,2]
[421000895,1776894635296,-346.06188356,9.505e-05,2]
[421000896,1776894635306,-150.0,9.506e-05,2]
[421000897,1776894635315,-1738.0,9.506e-05,5]
[421000898,1776894635324,-666789.57812642,9.506e-05,2]
[421000899,1776894635336,-2300.98536785,9.506e-05,2]
[421000900,1776894635347,-6141.52324217,9.506e-05,2]
[421000901,1776894635450,-500.0,9.477e-05,2]
[421000902,1776894635460,-14.62729366,9.477e-05,2]
[421000903,1776894635471,-485.37270634,9.477e-05,2]
[421000904,1776894635480,-664.69641889,9.506e-05,2]
[421000946,1776894640299,-2500.0,9.406e-05,2]
[421000947,1776894640308,-432.45277546,9.477e-05,2]
[421000948,1776894640317,-500.0,9.477e-05,2]
[421000949,1776894640326,-500.0,9.477e-05,2]
[421000950,1776894640335,-500.0,9.477e-05,2]
[421000951,1776894640344,-500.0,9.477e-05,2]
[421000952,1776894640353,-500.0,9.477e-05,2]
[421000953,1776894640362,-500.0,9.477e-05,2]
[421000954,1776894640371,-500.0,9.477e-05,2]
[421000955,1776894640380,-500.0,9.477e-05,2]
[421000956,1776894640390,-500.0,9.477e-05,2]
[421000957,1776894640400,-22516.52570167,9.506e-05,2]
[421000958,1776894640415,-7302.47562449,9.506e-05,2]
[421000959,1776894640429,-1316.30482803,9.506e-05,2]
[421000960,1776894640448,-306.069,9.506e-05,2]
[421000967,1776894643044,-198.62,8.686e-05,2]
[421000968,1776894643060,-248.28,8.847e-05,2]
[421000969,1776894643076,-297.94,9.009e-05,2]
[421000970,1776894643091,-239.65388968,9.506e-05,2]
[421000971,1776894643151,-379.14,9.506e-05,2]
[421000975,1776894647575,-347.59,9.171e-05,2]
[421000976,1776894647584,-445.5236,9.333e-05,2]
[421000977,1776894647600,-249.6864,9.333e-05,2]
[421000978,1776894647609,-915.89090191,9.506e-05,2]
[421000979,1776894647621,-26043.30398392,9.506e-05,2]
[421000980,1776894647632,-6486.69601608,9.506e-05,2]
[421000981,1776894647643,-130791.19355146,9.506e-05,2]
[421000982,1776894647655,-322.18655369,9.506e-05,2]
[421000983,1776894647676,-956.75230534,9.506e-05,2]
[421000984,1776894647689,-1439.22,9.506e-05,2]
[421000985,1776894647700,-537.60600006,9.506e-05,2]
[421000986,1776894647712,-46249.356553,9.506e-05,2]
[421000990,1776895345922,604.0,7.701e-05,2]
[421000993,1776895622093,48239.89302544,0.00012555,15]
[421000994,1776895652999,66160.51650614,0.00012555,15]
[421000997,1776895832122,-847.27840171,7.841e-05,2]
[421000998,1776895832134,-312.7,7.841e-05,2]
[421000999,1776895832146,-340.02159829,7.841e-05,2]
[421001000,1776895832156,-388.82,7.851e-05,2]
[421001001,1776895832165,-250.0,7.893e-05,2]
[421001002,1776895832175,-959.73,7.945e-05,2]
[421001003,1776895832185,-250.0,7.965e-05,2]
[421001004,1776895832194,-300.0,7.996e-05,2]
[421001005,1776895832204,-300.0,7.996e-05,2]
[421001006,1776895832214,-300.0,7.996e-05,2]
[421001007,1776895832223,-1200.0,7.996e-05,2]
[421001008,1776895832233,-351.62447628,7.997e-05,2]
[421001009,1776895832252,-892.62471101,7.997e-05,2]
[421001010,1776895832287,-6263.32093304,7.997e-05,2]
[421001011,1776895832298,-648.73496734,7.997e-05,2]
[421001012,1776895832345,-1559.37491233,7.997e-05,2]
[421001013,1776895832354,-2919.875406,8.178e-05,2]
[421001014,1776895832363,-166.14,8.219e-05,2]
[421001015,1776895832373,-165.01,8.29e-05,2]
[421001016,1776895832382,-150.99,8.331e-05,2]
[421001017,1776895832391,-408.3,8.331e-05,2]
[421001018,1776895832400,-150.0,8.331e-05,2]
[421001019,1776895832409,-105555.56,8.332e-05,2]
[421001020,1776895832418,-9999.99,8.407e-05,2]
[421001021,1776895832427,-299.99,8.407e-05,2]
[421001022,1776895832436,-150.0,8.458e-05,2]
[421001023,1776895832445,-150.0,8.458e-05,2]
[421001024,1776895832454,-150.0,8.458e-05,2]
[421001047,1776895832888,-150.0,8.458e-05,2]
[421001048,1776895832913,-150.0,8.458e-05,2]
[421001049,1776895832923,-2000.0,8.532e-05,2]
[421001050,1776895832932,-578.20924308,8.557e-05,2]
[421001051,1776895832942,-1428.38747117,8.557e-05,2]
[421001052,1776895832954,-500.0,8.557e-05,2]
[421001053,1776895832963,-200.0,8.557e-05,2]
[421001054,1776895832972,-721.12765535,8.557e-05,2]
[421001055,1776895832982,-151.0,8.557e-05,2]
[421001056,1776895832992,-743.50770149,8.557e-05,2]
[421001057,1776895833001,-174.61919141,8.557e-05,2]
[421001058,1776895833011,-209.40437684,8.557e-05,2]
[421001059,1776895833020,-500.0,8.612e-05,2]
[421001060,1776895833030,-151.0,8.612e-05,2]
[421001061,1776895833040,-193.0,8.625e-05,2]
[421001062,1776895833050,-5000.0,8.625e-05,2]
[421001063,1776895833059,-5000.0,8.625e-05,2]
[421001064,1776895833069,-500.0,8.625e-05,2]
[421001065,1776895833078,-349.59067719,8.625e-05,2]
[421001066,1776895833088,-250.0,8.625e-05,2]
[421001067,1776895833098,-193.0,8.625e-05,2]
[421001068,1776895833108,-300.0,8.625e-05,2]
[421001069,1776895833118,-300.0,8.625e-05,2]
[421001070,1776895833128,-300.0,8.625e-05,2]
[421001071,1776895833137,-300.0,8.625e-05,2]
[421001072,1776895833147,-193.0,8.625e-05,2]
[421001073,1776895833157,-300.0,8.625e-05,2]
[421001074,1776895833167,-5000.0,8.625e-05,2]
[421001075,1776895833176,-3438.57113719,8.625e-05,2]
[421001076,1776895833186,-500.0,8.625e-05,2]
[421001077,1776895833195,-166.66,8.657e-05,2]
[421001078,1776895833204,-500.0,8.667e-05,2]
[421001079,1776895833214,-151.0,8.667e-05,2]
[421001080,1776895833224,-2144.6,8.683e-05,2]
[421001081,1776895833233,-1900.0,8.7e-05,3]
[421001082,1776895833242,-500.0,8.722e-05,2]
[421001083,1776895833252,-151.0,8.722e-05,2]
[421001084,1776895833261,-500.0,8.777e-05,2]
[421001085,1776895833271,-151.0,8.777e-05,2]
[421001086,1776895833281,-420.0,8.795e-05,2]
[421001087,1776895833291,-3800.0,8.8e-05,3]
[421001088,1776895833300,-166.14,8.806e-05,2]
[421001089,1776895833310,-500.0,8.832e-05,2]
[421001090,1776895833319,-151.0,8.832e-05,2]
[421001091,1776895833329,-500.0,8.887e-05,2]
[421001092,1776895833338,-151.0,8.887e-05,2]
[421001093,1776895833347,-5800.0,8.9e-05,3]
[421001094,1776895833356,-500.0,8.942e-05,2]
[421001095,1776895833365,-166.66,8.942e-05,2]
[421001096,1776895833375,-500.0,8.959e-05,2]
[421001097,1776895833384,-172.83,8.984e-05,2]
[421001098,1776895833393,-500.0,8.997e-05,2]
[421001099,1776895833402,-7700.0,9e-05,3]
[421001100,1776895833412,-500.0,9.052e-05,2]
[421001101,1776895833421,-1481.23780761,9.105e-05,2]
[421001102,1776895833430,-200.0,9.105e-05,2]
[421001103,1776895833440,-917.32985558,9.105e-05,2]
[421001104,1776895833449,-181.08010149,9.105e-05,2]
[421001105,1776895833459,-217.15233878,9.105e-05,2]
[421001106,1776895833468,-4484.778,9.107e-05,2]
[421001107,1776895833478,-304.556,9.107e-05,2]
[421001108,1776895833487,-500.0,9.107e-05,2]
[421001109,1776895833496,-255.0,9.164e-05,2]
[421001110,1776895833506,-151.0,9.185e-05,2]
[421001111,1776895833515,-2500.0,9.206e-05,2]
[421001112,1776895833524,-166.66,9.228e-05,2]
[421001113,1776895833534,-3782.0,9.3e-05,2]
[421001114,1776895833543,-2000.0,9.3e-05,2]
[421001115,1776895833552,-33083.9584,9.306e-05,2]
[421001116,1776895833562,-205.2782,9.306e-05,2]
[421001117,1776895833571,-758.11,9.37e-05,2]
[421001118,1776895833580,-500.0,9.383e-05,2]
[421001119,1776895833590,-166.14,9.393e-05,2]
[421001120,1776895833599,-150.0,9.397e-05,2]
[421001121,1776895833608,-324.64113255,9.405e-05,2]
[421001122,1776895833618,-150.0,9.406e-05,2]
[421001123,1776895833627,-174.884096,9.406e-05,2]
[421001124,1776895833637,-174.884096,9.406e-05,2]
[421001125,1776895833646,-174.884096,9.406e-05,2]
[421001126,1776895833655,-174.884096,9.406e-05,2]
[421001127,1776895833664,-1607.0,9.406e-05,5]
[421001128,1776895833674,-20767.10540737,9.406e-05,2]
[421001129,1776895833686,-7843.09590689,9.406e-05,2]
[421001130,1776895833721,-531.0,9.406e-05,2]
[421001133,1776895838242,-5861.0,9.406e-05,2]
[421001134,1776895838338,-426.61846658,9.406e-05,2]
[421001293,1776895840372,-1528.70657414,9.406e-05,2]
[421001318,1776895840694,-520756.41971149,9.406e-05,2]
[421001325,1776895840749,-401.34878269,9.406e-05,2]
[421001327,1776895840761,-10874.03214022,9.406e-05,2]
[421001330,1776895840772,-19081.12410002,9.406e-05,2]
[421001332,1776895840783,-8994.11514348,9.406e-05,2]
[421001334,1776895840794,-705.60285014,9.406e-05,2]
[421001336,1776895840808,-276.99747719,9.406e-05,2]
[421001339,1776895840819,-372.34049029,9.406e-05,2]
[421001344,1776895840865,-670.70073042,9.406e-05,2]
[421001351,1776895840923,-1407.38003316,9.406e-05,2]
[421001354,1776895840934,-3984.22621312,9.406e-05,2]
[421001494,1776895846257,-250.44,9.406e-05,2]
[421001495,1776895846412,-18799.28192885,9.406e-05,2]
[421001537,1776896725701,150.0,7.397e-05,2]
[421001540,1776896867505,-1000.0,7.8e-05,2]
[421001545,1776897032276,-516.80872837,7.9e-05,2]
[421001546,1776897032435,-1483.19127163,7.9e-05,2]
[421001547,1776897032444,-250.0,7.95e-05,2]
[421001548,1776897032454,-3100.0,8e-05,2]
[421001549,1776897032464,-250.0,8.026e-05,2]
[421001550,1776897032473,-277.97368453,8.066e-05,2]
[421001551,1776897032485,-22.02631547,8.066e-05,2]
[421001552,1776897032494,-3587.823,8.067e-05,2]
[421001553,1776897032503,-243.644,8.067e-05,2]
[421001554,1776897032512,-167.9273062,8.113e-05,2]
[421001555,1776897032521,-500.38515044,8.113e-05,2]
[421001556,1776897032531,-500.0,8.113e-05,2]
[421001557,1776897032540,-500.0,8.113e-05,2]
[421001558,1776897032550,-7703.6294938,8.131e-05,2]
[421001559,1776897032562,-1466.46,8.131e-05,2]
[421001560,1776897032577,-2295.0,8.131e-05,2]
[421001561,1776897032619,-1875.42104967,8.131e-05,2]
[421001585,1776897038752,-385.12500051,8.131e-05,2]
[421001586,1776897038764,-314214.535177,8.131e-05,2]
[421001587,1776897038776,-123441.29368551,8.131e-05,2]
[421001588,1776897038787,-103268.47733749,8.131e-05,2]
[421001589,1776897038832,-547.4565743,8.131e-05,2]
[421001590,1776897038843,-2528.48506424,8.131e-05,2]
[421001591,1776897038857,-2963.76119281,8.131e-05,2]
[421001646,1776897040829,-305.11934148,8.131e-05,2]
[421001647,1776897040882,-338.004,8.131e-05,2]
[421001648,1776897040939,-28721.943405,8.131e-05,2]
[421001649,1776897040996,-1893.198547,8.131e-05,2]
[421001659,1776897043427,-2121.80929683,8.131e-05,2]
[421001660,1776897043439,-372.27914492,8.131e-05,2]
[421001661,1776897043481,-1171.31122445,8.131e-05,2]
[421001662,1776897043590,-1265.91989,8.131e-05,2]
[421001665,1776897046425,-2128.68306836,8.131e-05,2]
[421001666,1776897046456,-11546.86014265,8.131e-05,2]
[421001667,1776897046511,-41171.90077219,8.131e-05,2]
[421001668,1776897046524,-1449.26927114,8.131e-05,2]
[421001669,1776897046535,-41125.46414847,8.131e-05,2]
[421001670,1776897046568,-785.91,8.131e-05,2]
[421001671,1776897046786,-350.88499915,8.131e-05,2]
[421001681,1776897101468,-538.82133547,7.968e-05,2]
[421001682,1776897417612,-2331.43666453,7.968e-05,2]
[421001683,1776897417635,-194.916,7.968e-05,2]
[421001684,1776897417657,-153.0,7.968e-05,3]
[421001685,1776897417679,-250.0,7.968e-05,2]
[421001686,1776897417701,-70.64733547,7.968e-05,3]
[421001687,1776897459727,-500.0,7.769e-05,2]
[421001688,1776897660266,150.0,0.00011233,120]
[421001690,1776897716258,1600.0,7.469e-05,2]
[421001691,1776897727823,7400.01,7.414e-05,2]
[421001692,1776897727847,10000.01,7.414e-05,2]
[421001693,1776897727871,10000.01,7.414e-05,2]
[421001694,1776897727896,10000.01,7.414e-05,2]
[421001695,1776897727933,10000.01,7.414e-05,2]
[421001696,1776897727956,10000.01,7.414e-05,2]
[421001697,1776897727979,6176.75,7.414e-05,2]
[421001698,1776897787029,329.0,7.414e-05,3]
[421001699,1776897847125,313.0,7.414e-05,3]
[421001700,1776897906311,297.0,7.414e-05,3]
[421001701,1776897907148,153.0,7.414e-05,3]
[421001702,1776897967129,282.0,7.414e-05,3]
[421001704,1776898025522,268.0,7.414e-05,3]
[421001705,1776898054185,1500.0,7.7e-05,2]
[421001706,1776898061975,-3000.0,7.8e-05,2]
[421001707,1776898085401,255.0,7.414e-05,3]
[421001708,1776898151936,242.0,7.414e-05,3]
[421001715,1776898177745,200.0,7.7e-05,2]
[421001716,1776898196273,-904.76069752,7.85e-05,2]
[421001717,1776898196337,-10000.01,7.85e-05,2]
[421001718,1776898199285,-10000.01,7.85e-05,2]
[421001719,1776898207892,230.0,7.414e-05,3]
[421001723,1776898231505,-1200.0,7.849e-05,2]
[421001724,1776898231514,-300.0,7.849e-05,2]
[421001725,1776898231523,-300.0,7.849e-05,2]
[421001726,1776898231532,-2534.51520248,7.85e-05,2]
[421001727,1776898231541,-4500.0,7.9e-05,2]
[421001728,1776898231551,-500.93469977,7.933e-05,2]
[421001729,1776898231559,-500.0,7.933e-05,2]
[421001730,1776898231568,-500.0,7.933e-05,2]
[421001731,1776898231578,-500.0,7.933e-05,2]
[421001732,1776898231587,-500.0,7.933e-05,2]
[421001733,1776898231596,-500.0,7.933e-05,2]
[421001734,1776898231604,-407.29968292,7.933e-05,2]
[421001735,1776898231613,-500.0,7.933e-05,2]
[421001736,1776898231636,-160.10927686,7.933e-05,2]
[421001737,1776898231648,-500.45449615,7.933e-05,2]
[421001738,1776898231658,-151.0,7.947e-05,2]
[421001739,1776898231667,-150.0,7.948e-05,2]
[421001740,1776898231676,-300.0,7.948e-05,2]
[421001741,1776898231685,-155.0,7.948e-05,2]
[421001742,1776898231694,-376.25952121,7.949e-05,2]
[421001743,1776898231703,-453.72243776,7.949e-05,2]
[421001744,1776898231713,-500.0,7.949e-05,2]
[421001745,1776898231722,-166.41911812,7.949e-05,2]
[421001746,1776898231731,-500.0,7.949e-05,2]
[421001747,1776898231740,-500.0,7.949e-05,2]
[421001748,1776898231749,-377.89315395,7.949e-05,2]
[421001749,1776898231759,-500.0,7.949e-05,2]
[421001750,1776898231768,-500.0,7.949e-05,2]
[421001751,1776898231778,-500.0,7.949e-05,2]
[421001752,1776898231787,-500.0,7.949e-05,2]
[421001753,1776898231797,-500.0,7.949e-05,2]
[421001754,1776898231806,-500.0,7.949e-05,2]
[421001755,1776898231816,-500.0,7.949e-05,2]
[421001756,1776898231826,-601.02342945,7.949e-05,2]
[421001757,1776898231835,-500.0,7.949e-05,2]
[421001758,1776898231845,-409.38369617,7.949e-05,2]
[421001759,1776898231854,-500.0,7.949e-05,2]
[421001760,1776898231863,-507.5382709,7.949e-05,2]
[421001761,1776898231873,-500.0,7.949e-05,2]
[421001762,1776898231882,-500.0,7.949e-05,2]
[421001763,1776898231892,-559.01263418,7.949e-05,2]
[421001764,1776898231901,-181.84680563,7.949e-05,2]
[421001765,1776898231911,-500.0,7.949e-05,2]
[421001766,1776898231920,-500.0,7.949e-05,2]
[421001767,1776898231930,-209.92730231,7.949e-05,2]
[421001769,1776898231939,-500.0,7.949e-05,2]
[421001770,1776898231948,-500.0,7.949e-05,2]
[421001772,1776898231958,-500.0,7.949e-05,2]
[421001774,1776898231968,-500.0,7.949e-05,2]
[421001776,1776898231977,-500.0,7.949e-05,2]
[421001778,1776898231986,-500.0,7.949e-05,2]
[421001780,1776898231995,-500.0,7.949e-05,2]
[421001781,1776898232005,-500.0,7.949e-05,2]
[421001782,1776898232014,-500.0,7.949e-05,2]
[421001783,1776898232023,-500.0,7.949e-05,2]
[421001784,1776898232032,-500.0,7.949e-05,2]
[421001785,1776898232042,-500.0,7.949e-05,2]
[421001786,1776898232051,-500.0,7.949e-05,2]
[421001787,1776898232060,-597.57269016,7.949e-05,2]
[421001788,1776898232070,-500.0,7.949e-05,2]
[421001789,1776898232079,-500.0,7.949e-05,2]
[421001790,1776898232089,-500.0,7.949e-05,2]
[421001791,1776898232100,-500.0,7.949e-05,2]
[421001792,1776898232109,-500.0,7.949e-05,2]
[421001793,1776898232118,-500.0,7.949e-05,2]
[421001794,1776898232127,-500.0,7.949e-05,2]
[421001795,1776898232137,-702.56727455,7.949e-05,2]
[421001796,1776898232147,-702.56727455,7.949e-05,2]
[421001797,1776898232156,-702.56727455,7.949e-05,2]
[421001798,1776898232169,-702.56727455,7.949e-05,2]
[421001799,1776898232179,-702.56727455,7.949e-05,2]
[421001800,1776898232188,-702.56727455,7.949e-05,2]
[421001801,1776898232198,-702.56727455,7.949e-05,2]
[421001802,1776898232207,-702.56727455,7.949e-05,2]
[421001803,1776898232216,-702.56727455,7.949e-05,2]
[421001804,1776898232226,-702.56727455,7.949e-05,2]
[421001805,1776898232240,-702.56727455,7.949e-05,2]
[421001806,1776898232249,-702.56727455,7.949e-05,2]
[421001807,1776898232259,-702.56727455,7.949e-05,2]
[421001808,1776898232268,-702.56727455,7.949e-05,2]
[421001809,1776898232277,-702.56727455,7.949e-05,2]
[421001810,1776898232954,-702.56727455,7.949e-05,2]
[421001811,1776898232969,-702.56727455,7.949e-05,2]
[421001812,1776898232978,-702.56727455,7.949e-05,2]
[421001813,1776898232988,-702.56727455,7.949e-05,2]
[421001814,1776898232997,-702.56727455,7.949e-05,2]
[421001815,1776898233006,-702.56727455,7.949e-05,2]
[421001816,1776898233015,-702.56727455,7.949e-05,2]
[421001817,1776898233024,-702.56727455,7.949e-05,2]
[421001818,1776898233034,-702.56727455,7.949e-05,2]
[421001819,1776898233043,-702.56727455,7.949e-05,2]
[421001820,1776898233052,-702.56727455,7.949e-05,2]
[421001821,1776898233062,-702.56727455,7.949e-05,2]
[421001822,1776898233071,-702.56727455,7.949e-05,2]
[421001823,1776898233080,-702.56727455,7.949e-05,2]
[421001824,1776898233090,-702.56727455,7.949e-05,2]
[421001825,1776898233099,-702.56727455,7.949e-05,2]
[421001826,1776898233108,-702.56727455,7.949e-05,2]
[421001827,1776898233117,-702.56727455,7.949e-05,2]
[421001828,1776898233127,-702.56727455,7.949e-05,2]
[421001829,1776898233136,-702.56727455,7.949e-05,2]
[421001830,1776898233146,-702.56727455,7.949e-05,2]
[421001831,1776898233155,-702.56727455,7.949e-05,2]
[421001832,1776898233164,-702.56727455,7.949e-05,2]
[421001833,1776898233174,-702.56727455,7.949e-05,2]
[421001834,1776898233182,-702.56727455,7.949e-05,2]
[421001835,1776898233192,-702.56727455,7.949e-05,2]
[421001836,1776898233201,-702.56727455,7.949e-05,2]
[421001837,1776898233210,-685.58213164,7.949e-05,2]
[421001838,1776898233220,-685.58213164,7.949e-05,2]
[421001839,1776898233229,-685.58213164,7.949e-05,2]
[421001840,1776898233238,-685.58213164,7.949e-05,2]
[421001841,1776898233247,-685.58213164,7.949e-05,2]
[421001842,1776898233256,-685.58213164,7.949e-05,2]
[421001843,1776898233269,-685.58213164,7.949e-05,2]
[421001844,1776898233278,-685.58213164,7.949e-05,2]
[421001845,1776898233287,-685.58213164,7.949e-05,2]
[421001846,1776898233297,-685.58213164,7.949e-05,2]
[421001847,1776898233306,-685.58213164,7.949e-05,2]
[421001848,1776898233315,-685.58213164,7.949e-05,2]
[421001849,1776898233325,-685.58213164,7.949e-05,2]
[421001850,1776898233334,-685.58213164,7.949e-05,2]
[421001851,1776898233344,-685.58213164,7.949e-05,2]
[421001852,1776898233353,-685.58213164,7.949e-05,2]
[421001853,1776898233362,-685.58213164,7.949e-05,2]
[421001854,1776898233371,-685.58213164,7.949e-05,2]
[421001855,1776898233380,-685.58213164,7.949e-05,2]
[421001856,1776898233389,-685.58213164,7.949e-05,2]
[421001857,1776898233399,-685.58213164,7.949e-05,2]
[421001858,1776898233408,-685.58213164,7.949e-05,2]
[421001859,1776898233417,-685.58213164,7.949e-05,2]
[421001860,1776898233427,-685.58213164,7.949e-05,2]
[421001861,1776898233436,-685.58213164,7.949e-05,2]
[421001862,1776898233446,-685.58213164,7.949e-05,2]
[421001863,1776898233455,-447912.49348671,7.95e-05,2]
[421001864,1776898233469,-2247.070205,7.95e-05,2]
[421001865,1776898233480,-95218.66802662,7.95e-05,2]
[421001866,1776898233492,-1254.41808677,7.95e-05,2]
[421001867,1776898233514,-843640.28895024,7.95e-05,2]
[421001868,1776898233525,-3232.44604321,7.95e-05,2]
[421001869,1776898233537,-965.61194919,7.95e-05,2]
[421001870,1776898233599,-9416.88004107,7.95e-05,2]
[421001871,1776898233610,-355.00000001,7.95e-05,2]
[421001872,1776898237622,-187067.66560701,7.95e-05,2]
[421001873,1776898237635,-1343.82,7.95e-05,2]
[421001874,1776898237729,-196107.57501693,7.95e-05,2]
[421001875,1776898237744,-41627.80494876,7.95e-05,2]
[421001876,1776898237888,-6936.65,7.95e-05,2]
[421001877,1776898237948,-646.50864285,7.95e-05,2]
[421001878,1776898237998,-256598.72647526,7.95e-05,2]
[421001898,1776898242880,-824.0,7.95e-05,2]
[421001899,1776898242985,-404604.37252037,7.95e-05,2]
[421001900,1776898242995,-6000.0,8e-05,2]
[421001901,1776898243005,-24176.21924879,8.05e-05,2]
[421001902,1776898243015,-569.5582,8.11e-05,2]
[421001903,1776898243025,-2296.206,8.112e-05,2]
[421001904,1776898243034,-155.933,8.112e-05,2]
[421001905,1776898243044,-500.0,8.113e-05,2]
[421001906,1776898243053,-247.81199177,8.128e-05,2]
[421001907,1776898243062,-151.0,8.128e-05,2]
[421001908,1776898243071,-151.0,8.128e-05,2]
[421001909,1776898243080,-400.98,8.128e-05,2]
[421001910,1776898243090,-1000.0,8.128e-05,2]
[421001911,1776898243100,-1000.0,8.128e-05,2]
[421001912,1776898243109,-787.84,8.13e-05,2]
[421001913,1776898243118,-755.40294368,8.131e-05,2]
[421001914,1776898243127,-355.29175515,8.131e-05,2]
[421001915,1776898243136,-157.0,8.131e-05,2]
[421001917,1776898243146,-157.0,8.131e-05,2]
[421001918,1776898243155,-151.0,8.131e-05,2]
[421001920,1776898243165,-151.0,8.131e-05,2]
[421001921,1776898243174,-151.0,8.131e-05,2]
[421001922,1776898243183,-304.02215058,8.131e-05,2]
[421001923,1776898243192,-152.0,8.131e-05,2]
[421001925,1776898243202,-1532.0,8.131e-05,2]
[421001927,1776898243211,-1532.0,8.131e-05,2]
[421001928,1776898243220,-1532.0,8.131e-05,2]
[421001930,1776898243229,-1532.0,8.131e-05,2]
[421001932,1776898243238,-1532.0,8.131e-05,2]
[421001934,1776898243247,-1532.0,8.131e-05,2]
[421001936,1776898243256,-1532.0,8.131e-05,2]
[421001937,1776898243265,-1532.0,8.131e-05,2]
[421001939,1776898243274,-167.32496857,8.131e-05,2]
[421001940,1776898243283,-1532.0,8.131e-05,2]
[421001941,1776898243292,-1532.0,8.131e-05,2]
[421001942,1776898243301,-151.0,8.131e-05,2]
[421001943,1776898243311,-151.0,8.131e-05,2]
[421001944,1776898243320,-151.0,8.131e-05,2]
[421001945,1776898243329,-151.0,8.131e-05,2]
[421001946,1776898243339,-153.35058231,8.131e-05,2]
[421001947,1776898243348,-500.0,8.131e-05,2]
[421001948,1776898243357,-161.0,8.131e-05,2]
[421001949,1776898243366,-1532.0,8.131e-05,2]
[421001950,1776898243375,-161.0,8.131e-05,2]
[421001951,1776898243384,-167.0,8.131e-05,2]
[421001952,1776898243393,-152.0,8.131e-05,2]
[421001953,1776898243401,-1532.0,8.131e-05,2]
[421001954,1776898243411,-167.0,8.131e-05,2]
[421001955,1776898243420,-247.49764592,8.131e-05,2]
[421001956,1776898243429,-909.65793482,8.131e-05,2]
[421001957,1776898243438,-168.39765072,8.131e-05,2]
[421001958,1776898243448,-152.0,8.131e-05,2]
[421001959,1776898243456,-1532.0,8.131e-05,2]
[421001960,1776898243465,-152.0,8.131e-05,2]
[421001961,1776898243474,-1532.0,8.131e-05,2]
[421001962,1776898243483,-152.0,8.131e-05,2]
[421001963,1776898243493,-1532.0,8.131e-05,2]
[421001964,1776898243502,-152.0,8.131e-05,2]
[421001965,1776898243511,-1532.0,8.131e-05,2]
[421001966,1776898243521,-1532.0,8.131e-05,2]
[421001967,1776898243530,-1532.0,8.131e-05,2]
[421001968,1776898243539,-1532.0,8.131e-05,2]
[421001969,1776898243549,-1532.0,8.131e-05,2]
[421001970,1776898243558,-1532.0,8.131e-05,2]
[421001971,1776898243567,-1532.0,8.131e-05,2]
[421001972,1776898243576,-151.0,8.131e-05,2]
[421001973,1776898243586,-9039.0032118,8.16e-05,2]
[421001974,1776898243595,-388.1440377,8.168e-05,2]
[421001975,1776898243604,-725.0,8.18e-05,2]
[421001976,1776898243614,-230.0,8.182e-05,3]
[421001977,1776898243623,-324.8307888,8.19e-05,2]
[421001978,1776898245504,-1235.34021761,8.19e-05,2]
[421001979,1776898245557,-1037.32092717,8.19e-05,2]
[421001980,1776898245666,-25538.10752852,8.19e-05,2]
[421001981,1776898245878,-445.5,8.19e-05,2]
[421001985,1776898294513,-500.0,7.8e-05,2]
[421001987,1776898329809,207.0,7.8e-05,3]
[421001988,1776898371853,154.0,7.8e-05,3]
[421001989,1776898381340,300.0,7.848e-05,2]
[421001990,1776898388230,196.0,7.8e-05,3]
[421001992,1776898441848,150.0,7.848e-05,2]
[421001993,1776898442661,300.0,7.848e-05,2]
[421001994,1776898446980,500.0,7.848e-05,2]